Workbook

Sheet 铜仁市碧江区事业单位
A1: 附件
A2: 2023年铜仁市碧江区事业单位公开招聘工作人员面试成绩及考试总成绩
A3: 序号 | B3: 准考证号 | C3: 姓名 | D3: 招聘单位主管部门 | E3: 招聘单位 | F3: 岗位代码 | G3: 岗位类别 | H3: 资格复审情况 | I3: 笔试成绩 | J3: 笔试成绩×50% | K3: 面试成绩 | L3: 面试成绩×50% | M3: 考试总成绩 | N3: 考试总成绩排名 | O3: 是否为拟体检人员 | P3: 备注
A4: 1 | B4: 11122010427 | C4: 李成峰 | D4: 中共铜仁市碧江区委宣传部 | E4: 碧江区互联网舆情中心 | F4: QZ01 | G4: 综合类 | H4: 合格 | I4: 86.40 | J4: =I4*0.5 -> 43.20 | K4: 79.13 | L4: =K4*0.5 -> 39.57 | M4: =J4+L4 -> 82.77 | N4: 1 | O4: 是
A5: 2 | B5: 11122010230 | C5: 雷蓉 | D5: 中共铜仁市碧江区委宣传部 | E5: 碧江区互联网舆情中心 | F5: QZ01 | G5: 综合类 | H5: 合格 | I5: 85.70 | J5: 42.85 | K5: 74.67 | L5: 37.34 | M5: 80.19 | N5: 2
A6: 3 | B6: 11122010218 | C6: 姚娅 | D6: 中共铜仁市碧江区委宣传部 | E6: 碧江区互联网舆情中心 | F6: QZ01 | G6: 综合类 | H6: 合格 | I6: 85.50 | J6: 42.75 | K6: 0.00 | L6: 0.00 | M6: 42.75 | N6: 3 | P6: 面试缺考
A7: 4 | B7: 11122010609 | C7: 罗呦 | D7: 碧江区住房和城乡建设局 | E7: 碧江区建筑质量监督站 | F7: QZ02 | G7: 综合类 | H7: 合格 | I7: 87.40 | J7: 43.70 | K7: 76.50 | L7: 38.25 | M7: 81.95 | N7: 1 | O7: 是
A8: 5 | B8: 11122010615 | C8: 陈清云 | D8: 碧江区住房和城乡建设局 | E8: 碧江区建筑质量监督站 | F8: QZ02 | G8: 综合类 | H8: 合格 | I8: 88.50 | J8: 44.25 | K8: 74.97 | L8: 37.49 | M8: 81.74 | N8: 2
A9: 6 | B9: 11122010619 | C9: 姜涛 | D9: 碧江区住房和城乡建设局 | E9: 碧江区建筑质量监督站 | F9: QZ02 | G9: 综合类 | H9: 递补合格 | I9: 81.40 | J9: 40.70 | K9: 72.07 | L9: 36.04 | M9: 76.74 | N9: 3
A10: 7 | B10: 11122011001 | C10: 刘萍 | D10: 碧江区人力资源和社会保障局 | E10: 碧江区劳动人事争议仲裁院 | F10: QZ03 | G10: 综合类 | H10: 合格 | I10: 84.10 | J10: 42.05 | K10: 77.43 | L10: 38.72 | M10: 80.77 | N10: 1 | O10: 是
A11: 8 | B11: 11122011112 | C11: 罗广 | D11: 碧江区人力资源和社会保障局 | E11: 碧江区劳动人事争议仲裁院 | F11: QZ03 | G11: 综合类 | H11: 合格 | I11: 84.50 | J11: 42.25 | K11: 77.00 | L11: 38.50 | M11: 80.75 | N11: 2
A12: 9 | B12: 11122010825 | C12: 杨娅 | D12: 碧江区人力资源和社会保障局 | E12: 碧江区劳动人事争议仲裁院 | F12: QZ03 | G12: 综合类 | H12: 合格 | I12: 85.50 | J12: 42.75 | K12: 74.83 | L12: 37.42 | M12: 80.17 | N12: 3
A13: 10 | B13: 11122010816 | C13: 刘云飞 | D13: 碧江区人力资源和社会保障局 | E13: 碧江区劳动人事争议仲裁院 | F13: QZ03 | G13: 综合类 | H13: 合格 | I13: 84.10 | J13: 42.05 | K13: 75.13 | L13: 37.57 | M13: 79.62 | N13: 4
A14: 11 | B14: 11122013412 | C14: 姜玉玲 | D14: 碧江区民政局 | E14: 碧江区未成年人保护中心 | F14: QZ04 | G14: 综合类 | H14: 合格 | I14: 91.10 | J14: 45.55 | K14: 81.77 | L14: 40.89 | M14: 86.44 | N14: 1 | O14: 是
A15: 12 | B15: 11122013805 | C15: 梁宗会 | D15: 碧江区民政局 | E15: 碧江区未成年人保护中心 | F15: QZ04 | G15: 综合类 | H15: 合格 | I15: 87.80 | J15: 43.90 | K15: 82.87 | L15: 41.44 | M15: 85.34 | N15: 2
A16: 13 | B16: 11122013506 | C16: 王旭 | D16: 碧江区民政局 | E16: 碧江区未成年人保护中心 | F16: QZ04 | G16: 综合类 | H16: 合格 | I16: 89.40 | J16: 44.70 | K16: 79.73 | L16: 39.87 | M16: 84.57 | N16: 3
A17: 14 | B17: 11122020712 | C17: 陈心 | D17: 中共铜仁市碧江区委编制委员会办公室 | E17: 碧江区机构编制评估中心 | F17: QZ05 | G17: 综合类 | H17: 合格 | I17: 91.00 | J17: 45.50 | K17: 82.77 | L17: 41.39 | M17: 86.89 | N17: 1 | O17: 是
A18: 15 | B18: 11122021606 | C18: 安宁 | D18: 中共铜仁市碧江区委编制委员会办公室 | E18: 碧江区机构编制评估中心 | F18: QZ05 | G18: 综合类 | H18: 合格 | I18: 89.70 | J18: 44.85 | K18: 80.73 | L18: 40.37 | M18: 85.22 | N18: 2
A19: 16 | B19: 11122021621 | C19: 张念 | D19: 中共铜仁市碧江区委编制委员会办公室 | E19: 碧江区机构编制评估中心 | F19: QZ05 | G19: 综合类 | H19: 合格 | I19: 91.20 | J19: 45.60 | K19: 75.47 | L19: 37.74 | M19: 83.34 | N19: 3
A20: 17 | B20: 11122023103 | C20: 杨柯熙 | D20: 铜兴街道办事处 | E20: 铜兴街道综治中心（网格化管理服务中心） | F20: XZ01 | G20: 综合类 | H20: 合格 | I20: 90.30 | J20: 45.15 | K20: 80.70 | L20: 40.35 | M20: 85.50 | N20: 1 | O20: 是
A21: 18 | B21: 11122022322 | C21: 张顺亮 | D21: 铜兴街道办事处 | E21: 铜兴街道综治中心（网格化管理服务中心） | F21: XZ01 | G21: 综合类 | H21: 合格 | I21: 86.50 | J21: 43.25 | K21: 75.03 | L21: 37.52 | M21: 80.77 | N21: 2
A22: 19 | B22: 11122023016 | C22: 肖亚江 | D22: 铜兴街道办事处 | E22: 铜兴街道综治中心（网格化管理服务中心） | F22: XZ01 | G22: 综合类 | H22: 合格 | I22: 86.50 | J22: 43.25 | K22: 0.00 | L22: 0.00 | M22: 43.25 | N22: 3 | P22: 面试缺考
A23: 20 | B23: 11122033709 | C23: 张丽 | D23: 锦江街道办事处 | E23: 锦江街道综治中心（网格化管理服务中心） | F23: XZ02 | G23: 综合类 | H23: 合格 | I23: 91.00 | J23: 45.50 | K23: 80.20 | L23: 40.10 | M23: 85.60 | N23: 1 | O23: 是
A24: 21 | B24: 11122023612 | C24: 唐伟 | D24: 锦江街道办事处 | E24: 锦江街道综治中心（网格化管理服务中心） | F24: XZ02 | G24: 综合类 | H24: 合格 | I24: 92.30 | J24: 46.15 | K24: 78.40 | L24: 39.20 | M24: 85.35 | N24: 2 | O24: 是
A25: 22 | B25: 11122032907 | C25: 吴黎科 | D25: 锦江街道办事处 | E25: 锦江街道综治中心（网格化管理服务中心） | F25: XZ02 | G25: 综合类 | H25: 合格 | I25: 89.00 | J25: 44.50 | K25: 78.83 | L25: 39.42 | M25: 83.92 | N25: 3 | O25: 是
A26: 23 | B26: 11122033829 | C26: 王继 | D26: 锦江街道办事处 | E26: 锦江街道综治中心（网格化管理服务中心） | F26: XZ02 | G26: 综合类 | H26: 合格 | I26: 88.80 | J26: 44.40 | K26: 78.83 | L26: 39.42 | M26: 83.82 | N26: 4
A27: 24 | B27: 11122024629 | C27: 杨雪峰 | D27: 锦江街道办事处 | E27: 锦江街道综治中心（网格化管理服务中心） | F27: XZ02 | G27: 综合类 | H27: 合格 | I27: 89.50 | J27: 44.75 | K27: 78.03 | L27: 39.02 | M27: 83.77 | N27: 5
A28: 25 | B28: 11122024612 | C28: 周清 | D28: 锦江街道办事处 | E28: 锦江街道综治中心（网格化管理服务中心） | F28: XZ02 | G28: 综合类 | H28: 递补合格 | I28: 88.40 | J28: 44.20 | K28: 79.13 | L28: 39.57 | M28: 83.77 | N28: 5
A29: 26 | B29: 11122032708 | C29: 杨亨 | D29: 锦江街道办事处 | E29: 锦江街道综治中心（网格化管理服务中心） | F29: XZ02 | G29: 综合类 | H29: 合格 | I29: 91.00 | J29: 45.50 | K29: 75.80 | L29: 37.90 | M29: 83.40 | N29: 7
A30: 27 | B30: 11122032604 | C30: 袁鹏 | D30: 锦江街道办事处 | E30: 锦江街道综治中心（网格化管理服务中心） | F30: XZ02 | G30: 综合类 | H30: 合格 | I30: 89.10 | J30: 44.55 | K30: 76.60 | L30: 38.30 | M30: 82.85 | N30: 8
A31: 28 | B31: 11122034612 | C31: 严寅茜 | D31: 锦江街道办事处 | E31: 锦江街道综治中心（网格化管理服务中心） | F31: XZ02 | G31: 综合类 | H31: 递补合格 | I31: 88.60 | J31: 44.30 | K31: 75.27 | L31: 37.64 | M31: 81.94 | N31: 9
A32: 29 | B32: 11122031409 | C32: 申伟 | D32: 锦江街道办事处 | E32: 锦江街道综治中心（网格化管理服务中心） | F32: XZ02 | G32: 综合类 | H32: 递补合格 | I32: 88.40 | J32: 44.20 | K32: 75.10 | L32: 37.55 | M32: 81.75 | N32: 10
A33: 30 | B33: 11122036010 | C33: 杨雨航 | D33: 灯塔街道办事处 | E33: 灯塔街道党务政务综合服务中心（便民服务中心） | F33: XZ03 | G33: 综合类 | H33: 合格 | I33: 86.20 | J33: 43.10 | K33: 82.78 | L33: 41.39 | M33: 84.49 | N33: 1 | O33: 是
A34: 31 | B34: 11122035704 | C34: 张志杰 | D34: 灯塔街道办事处 | E34: 灯塔街道党务政务综合服务中心（便民服务中心） | F34: XZ03 | G34: 综合类 | H34: 合格 | I34: 86.10 | J34: 43.05 | K34: 78.53 | L34: 39.27 | M34: 82.32 | N34: 2
A35: 32 | B35: 11122035228 | C35: 饶江连 | D35: 灯塔街道办事处 | E35: 灯塔街道党务政务综合服务中心（便民服务中心） | F35: XZ03 | G35: 综合类 | H35: 合格 | I35: 86.50 | J35: 43.25 | K35: 77.33 | L35: 38.67 | M35: 81.92 | N35: 3
A36: 33 | B36: 11122040326 | C36: 陈浩 | D36: 灯塔街道办事处 | E36: 灯塔街道综治中心（网格化管理服务中心） | F36: XZ04 | G36: 综合类 | H36: 合格 | I36: 87.70 | J36: 43.85 | K36: 83.19 | L36: 41.60 | M36: 85.45 | N36: 1 | O36: 是
A37: 34 | B37: 11122041313 | C37: 黄圆基 | D37: 灯塔街道办事处 | E37: 灯塔街道综治中心（网格化管理服务中心） | F37: XZ04 | G37: 综合类 | H37: 合格 | I37: 87.60 | J37: =I37*0.5 -> 43.80 | K37: 81.42 | L37: =K37*0.5 -> 40.71 | M37: =J37+L37 -> 84.51 | N37: 2
A38: 35 | B38: 11122040517 | C38: 杨敬 | D38: 灯塔街道办事处 | E38: 灯塔街道综治中心（网格化管理服务中心） | F38: XZ04 | G38: 综合类 | H38: 合格 | I38: 87.50 | J38: 43.75 | K38: 78.83 | L38: 39.42 | M38: 83.17 | N38: 3
A39: 36 | B39: 11122042217 | C39: 陈雪梅 | D39: 桐木坪乡人民政府 | E39: 桐木坪乡党务政务综合服务中心（便民服务中心） | F39: XZ05 | G39: 综合类 | H39: 合格 | I39: 85.80 | J39: 42.90 | K39: 82.82 | L39: 41.41 | M39: 84.31 | N39: 1 | O39: 是
A40: 37 | B40: 11122042504 | C40: 李小玲 | D40: 桐木坪乡人民政府 | E40: 桐木坪乡党务政务综合服务中心（便民服务中心） | F40: XZ05 | G40: 综合类 | H40: 合格 | I40: 86.80 | J40: 43.40 | K40: 79.33 | L40: 39.67 | M40: 83.07 | N40: 2
A41: 38 | B41: 11122041924 | C41: 王平 | D41: 桐木坪乡人民政府 | E41: 桐木坪乡党务政务综合服务中心（便民服务中心） | F41: XZ05 | G41: 综合类 | H41: 合格 | I41: 85.60 | J41: 42.80 | K41: 79.51 | L41: 39.76 | M41: 82.56 | N41: 3
A42: 39 | B42: 11122042805 | C42: 蒋旖翔 | D42: 桐木坪乡人民政府 | E42: 桐木坪乡综治中心（网格化管理服务中心） | F42: XZ06 | G42: 综合类 | H42: 合格 | I42: 77.50 | J42: 38.75 | K42: 83.08 | L42: 41.54 | M42: 80.29 | N42: 1 | O42: 是
A43: 40 | B43: 11122042819 | C43: 龚乐 | D43: 桐木坪乡人民政府 | E43: 桐木坪乡综治中心（网格化管理服务中心） | F43: XZ06 | G43: 综合类 | H43: 合格 | I43: 72.20 | J43: 36.10 | K43: 78.15 | L43: 39.08 | M43: 75.18 | N43: 2
A44: 41 | B44: 11122042823 | C44: 周海涛 | D44: 桐木坪乡人民政府 | E44: 桐木坪乡综治中心（网格化管理服务中心） | F44: XZ06 | G44: 综合类 | H44: 合格 | I44: 74.60 | J44: 37.30 | K44: 71.67 | L44: 35.84 | M44: 73.14 | N44: 3
A45: 42 | B45: 11122042810 | C45: 韩羿 | D45: 桐木坪乡人民政府 | E45: 桐木坪乡综治中心（网格化管理服务中心） | F45: XZ06 | G45: 综合类 | H45: 合格 | I45: 72.20 | J45: 36.10 | K45: 73.67 | L45: 36.84 | M45: 72.94 | N45: 4
A46: 43 | B46: 11122043401 | C46: 刘华 | D46: 六龙山乡人民政府 | E46: 六龙山乡党务政务综合服务中心（便民服务中心） | F46: XZ07 | G46: 综合类 | H46: 合格 | I46: 86.70 | J46: 43.35 | K46: 78.17 | L46: 39.09 | M46: 82.44 | N46: 1 | O46: 是
A47: 44 | B47: 11122043226 | C47: 甘艳玲 | D47: 六龙山乡人民政府 | E47: 六龙山乡党务政务综合服务中心（便民服务中心） | F47: XZ07 | G47: 综合类 | H47: 合格 | I47: 85.60 | J47: 42.80 | K47: 77.33 | L47: 38.67 | M47: 81.47 | N47: 2
A48: 45 | B48: 11122043316 | C48: 石丽芬 | D48: 六龙山乡人民政府 | E48: 六龙山乡党务政务综合服务中心（便民服务中心） | F48: XZ07 | G48: 综合类 | H48: 合格 | I48: 86.30 | J48: 43.15 | K48: 74.27 | L48: 37.14 | M48: 80.29 | N48: 3
A49: 46 | B49: 11122043820 | C49: 黎黔松 | D49: 六龙山乡人民政府 | E49: 六龙山乡社会工作服务中心 | F49: XZ08 | G49: 综合类 | H49: 合格 | I49: 74.00 | J49: 37.00 | K49: 77.25 | L49: 38.63 | M49: 75.63 | N49: 1 | O49: 是
A50: 47 | B50: 11122043815 | C50: 刘昊 | D50: 六龙山乡人民政府 | E50: 六龙山乡社会工作服务中心 | F50: XZ08 | G50: 综合类 | H50: 递补合格 | I50: 67.50 | J50: 33.75 | K50: 71.73 | L50: 35.87 | M50: 69.62 | N50: 2
A51: 48 | B51: 11122043801 | C51: 陈万元 | D51: 六龙山乡人民政府 | E51: 六龙山乡社会工作服务中心 | F51: XZ08 | G51: 综合类 | H51: 递补合格 | I51: 63.70 | J51: 31.85 | K51: 73.00 | L51: 36.50 | M51: 68.35 | N51: 3
A52: 49 | B52: 11122044828 | C52: 贺斌 | D52: 漾头镇人民政府 | E52: 漾头镇党务政务综合服务中心（便民服务中心） | F52: XZ09 | G52: 综合类 | H52: 合格 | I52: 85.20 | J52: 42.60 | K52: 86.00 | L52: 43.00 | M52: 85.60 | N52: 1 | O52: 是
A53: 50 | B53: 11122044420 | C53: 冉恒 | D53: 漾头镇人民政府 | E53: 漾头镇党务政务综合服务中心（便民服务中心） | F53: XZ09 | G53: 综合类 | H53: 合格 | I53: 86.00 | J53: 43.00 | K53: 78.85 | L53: 39.43 | M53: 82.43 | N53: 2
A54: 51 | B54: 11122044121 | C54: 王泽伟 | D54: 漾头镇人民政府 | E54: 漾头镇党务政务综合服务中心（便民服务中心） | F54: XZ09 | G54: 综合类 | H54: 合格 | I54: 85.40 | J54: 42.70 | K54: 78.12 | L54: 39.06 | M54: 81.76 | N54: 3
A55: 52 | B55: 11122045003 | C55: 杨其汉 | D55: 漾头镇人民政府 | E55: 漾头镇农业服务中心（乡村振兴服务中心） | F55: XZ10 | G55: 综合类 | H55: 合格 | I55: 81.00 | J55: 40.50 | K55: 78.91 | L55: 39.46 | M55: 79.96 | N55: 1 | O55: 是
A56: 53 | B56: 11122044927 | C56: 田丹芳 | D56: 漾头镇人民政府 | E56: 漾头镇农业服务中心（乡村振兴服务中心） | F56: XZ10 | G56: 综合类 | H56: 合格 | I56: 80.80 | J56: 40.40 | K56: 78.00 | L56: 39.00 | M56: 79.40 | N56: 2
A57: 54 | B57: 11122045006 | C57: 高秀锦 | D57: 漾头镇人民政府 | E57: 漾头镇农业服务中心（乡村振兴服务中心） | F57: XZ10 | G57: 综合类 | H57: 合格 | I57: 80.40 | J57: 40.20 | K57: 78.05 | L57: 39.03 | M57: 79.23 | N57: 3
A58: 55 | B58: 11122050123 | C58: 王永琴 | D58: 云场坪镇人民政府 | E58: 云场坪镇社会工作服务中心 | F58: XZ11 | G58: 综合类 | H58: 合格 | I58: 87.60 | J58: 43.80 | K58: 82.43 | L58: 41.22 | M58: 85.02 | N58: 1 | O58: 是
A59: 56 | B59: 11122050513 | C59: 董涛 | D59: 云场坪镇人民政府 | E59: 云场坪镇社会工作服务中心 | F59: XZ11 | G59: 综合类 | H59: 合格 | I59: 86.90 | J59: 43.45 | K59: 79.79 | L59: 39.90 | M59: 83.35 | N59: 2
A60: 57 | B60: 11122050726 | C60: 冉妮 | D60: 云场坪镇人民政府 | E60: 云场坪镇社会工作服务中心 | F60: XZ11 | G60: 综合类 | H60: 合格 | I60: 87.60 | J60: 43.80 | K60: 77.75 | L60: 38.88 | M60: 82.68 | N60: 3
A61: 58 | B61: 11122051713 | C61: 张学瑾 | D61: 云场坪镇人民政府 | E61: 云场坪镇综治中心(网格化管理服务中心) | F61: XZ12 | G61: 综合类 | H61: 合格 | I61: 89.00 | J61: 44.50 | K61: 81.60 | L61: 40.80 | M61: 85.30 | N61: 1 | O61: 是
A62: 59 | B62: 11122050817 | C62: 凌怀 | D62: 云场坪镇人民政府 | E62: 云场坪镇综治中心(网格化管理服务中心) | F62: XZ12 | G62: 综合类 | H62: 合格 | I62: 86.90 | J62: 43.45 | K62: 82.67 | L62: 41.34 | M62: 84.79 | N62: 2
A63: 60 | B63: 11122050923 | C63: 张晨 | D63: 云场坪镇人民政府 | E63: 云场坪镇综治中心(网格化管理服务中心) | F63: XZ12 | G63: 综合类 | H63: 递补合格 | I63: 82.20 | J63: 41.10 | K63: 80.53 | L63: 40.27 | M63: 81.37 | N63: 3
A64: 61 | B64: 11122052022 | C64: 罗世琴 | D64: 和平乡人民政府 | E64: 和平乡农业服务中心（乡村振兴服务中心） | F64: XZ13 | G64: 综合类 | H64: 合格 | I64: 81.30 | J64: 40.65 | K64: 78.50 | L64: 39.25 | M64: 79.90 | N64: 1 | O64: 是
A65: 62 | B65: 11122052125 | C65: 刘俐莉 | D65: 和平乡人民政府 | E65: 和平乡农业服务中心（乡村振兴服务中心） | F65: XZ13 | G65: 综合类 | H65: 合格 | I65: 80.10 | J65: 40.05 | K65: 79.20 | L65: 39.60 | M65: 79.65 | N65: 2
A66: 63 | B66: 11122052024 | C66: 付沙 | D66: 和平乡人民政府 | E66: 和平乡农业服务中心（乡村振兴服务中心） | F66: XZ13 | G66: 综合类 | H66: 合格 | I66: 81.20 | J66: 40.60 | K66: 75.83 | L66: 37.92 | M66: 78.52 | N66: 3
A67: 64 | B67: 11122052211 | C67: 黄昌松 | D67: 和平乡人民政府 | E67: 和平乡退役军人服务站 | F67: XZ14 | G67: 综合类 | H67: 合格 | I67: 81.20 | J67: 40.60 | K67: 78.37 | L67: 39.19 | M67: 79.79 | N67: 1 | O67: 是
A68: 65 | B68: 11122052302 | C68: 郭磊 | D68: 和平乡人民政府 | E68: 和平乡退役军人服务站 | F68: XZ14 | G68: 综合类 | H68: 合格 | I68: 77.00 | J68: 38.50 | K68: 78.10 | L68: 39.05 | M68: 77.55 | N68: 2
A69: 66 | B69: 11122052310 | C69: 龙丽莎 | D69: 和平乡人民政府 | E69: 和平乡退役军人服务站 | F69: XZ14 | G69: 综合类 | H69: 合格 | I69: 77.60 | J69: 38.80 | K69: 74.27 | L69: 37.14 | M69: 75.94 | N69: 3
A70: 67 | B70: 11122052521 | C70: 刘林康 | D70: 和平乡人民政府 | E70: 和平乡环保林业水务站 | F70: XZ15 | G70: 综合类 | H70: 合格 | I70: 86.40 | J70: =I70*0.5 -> 43.20 | K70: 79.60 | L70: =K70*0.5 -> 39.80 | M70: =J70+L70 -> 83.00 | N70: 1 | O70: 是
A71: 68 | B71: 11122052412 | C71: 王涛 | D71: 和平乡人民政府 | E71: 和平乡环保林业水务站 | F71: XZ15 | G71: 综合类 | H71: 合格 | I71: 84.00 | J71: 42.00 | K71: 80.80 | L71: 40.40 | M71: 82.40 | N71: 2
A72: 69 | B72: 11122052526 | C72: 冉良茂 | D72: 和平乡人民政府 | E72: 和平乡环保林业水务站 | F72: XZ15 | G72: 综合类 | H72: 递补合格 | I72: 82.50 | J72: 41.25 | K72: 75.90 | L72: 37.95 | M72: 79.20 | N72: 3
A73: 70 | B73: 11122052702 | C73: 涂华健 | D73: 坝黄镇人民政府 | E73: 坝黄镇综治中心(网格化管理服务中心) | F73: XZ16 | G73: 综合类 | H73: 合格 | I73: 82.70 | J73: 41.35 | K73: 82.07 | L73: 41.04 | M73: 82.39 | N73: 1 | O73: 是
A74: 71 | B74: 11122052706 | C74: 曾文昊 | D74: 坝黄镇人民政府 | E74: 坝黄镇综治中心(网格化管理服务中心) | F74: XZ16 | G74: 综合类 | H74: 合格 | I74: 80.30 | J74: 40.15 | K74: 83.57 | L74: 41.79 | M74: 81.94 | N74: 2
A75: 72 | B75: 11122052707 | C75: 龙仙明 | D75: 坝黄镇人民政府 | E75: 坝黄镇综治中心(网格化管理服务中心) | F75: XZ16 | G75: 综合类 | H75: 合格 | I75: 79.70 | J75: 39.85 | K75: 77.93 | L75: 38.97 | M75: 78.82 | N75: 3
A76: 73 | B76: 11122053610 | C76: 杨宽 | D76: 坝黄镇人民政府 | E76: 坝黄镇党务政务综合服务中心（便民服务中心） | F76: XZ17 | G76: 综合类 | H76: 合格 | I76: 90.40 | J76: 45.20 | K76: 79.57 | L76: 39.79 | M76: 84.99 | N76: 1 | O76: 是
A77: 74 | B77: 11122054404 | C77: 罗松 | D77: 坝黄镇人民政府 | E77: 坝黄镇党务政务综合服务中心（便民服务中心） | F77: XZ17 | G77: 综合类 | H77: 合格 | I77: 91.50 | J77: 45.75 | K77: 78.27 | L77: 39.14 | M77: 84.89 | N77: 2
A78: 75 | B78: 11122054410 | C78: 雷鹏 | D78: 坝黄镇人民政府 | E78: 坝黄镇党务政务综合服务中心（便民服务中心） | F78: XZ17 | G78: 综合类 | H78: 合格 | I78: 89.50 | J78: 44.75 | K78: 74.67 | L78: 37.34 | M78: 82.09 | N78: 3
A79: 76 | B79: 11122055028 | C79: 毛明跃 | D79: 坝黄镇人民政府 | E79: 坝黄镇农业服务中心（乡村振兴服务中心） | F79: XZ18 | G79: 综合类 | H79: 合格 | I79: 83.90 | J79: 41.95 | K79: 78.00 | L79: 39.00 | M79: 80.95 | N79: 1 | O79: 是
A80: 77 | B80: 11122055002 | C80: 金棼华 | D80: 坝黄镇人民政府 | E80: 坝黄镇农业服务中心（乡村振兴服务中心） | F80: XZ18 | G80: 综合类 | H80: 合格 | I80: 85.30 | J80: 42.65 | K80: 75.87 | L80: 37.94 | M80: 80.59 | N80: 2
A81: 78 | B81: 11122055205 | C81: 朱文武 | D81: 坝黄镇人民政府 | E81: 坝黄镇农业服务中心（乡村振兴服务中心） | F81: XZ18 | G81: 综合类 | H81: 合格 | I81: 83.90 | J81: 41.95 | K81: 0.00 | L81: 0.00 | M81: 41.95 | N81: 3 | P81: 面试缺考
A82: 79 | B82: 11122055313 | C82: 田海涛 | D82: 坝黄镇人民政府 | E82: 坝黄镇环保林业水务站 | F82: XZ19 | G82: 综合类 | H82: 合格 | I82: 86.90 | J82: 43.45 | K82: 84.37 | L82: 42.19 | M82: 85.64 | N82: 1 | O82: 是
A83: 80 | B83: 11122055308 | C83: 任林强 | D83: 坝黄镇人民政府 | E83: 坝黄镇环保林业水务站 | F83: XZ19 | G83: 综合类 | H83: 合格 | I83: 85.00 | J83: 42.50 | K83: 78.50 | L83: 39.25 | M83: 81.75 | N83: 2
A84: 81 | B84: 11122055327 | C84: 杨铅 | D84: 坝黄镇人民政府 | E84: 坝黄镇环保林业水务站 | F84: XZ19 | G84: 综合类 | H84: 合格 | I84: 83.00 | J84: 41.50 | K84: 74.50 | L84: 37.25 | M84: 78.75 | N84: 3
A85: 82 | B85: 11122055615 | C85: 钱英莺 | D85: 滑石乡人民政府 | E85: 滑石乡综治中心（网格化管理服务中心） | F85: XZ20 | G85: 综合类 | H85: 合格 | I85: 85.20 | J85: 42.60 | K85: 81.53 | L85: 40.77 | M85: 83.37 | N85: 1 | O85: 是
A86: 83 | B86: 11122064903 | C86: 李涛 | D86: 滑石乡人民政府 | E86: 滑石乡综治中心（网格化管理服务中心） | F86: XZ20 | G86: 综合类 | H86: 合格 | I86: 85.40 | J86: 42.70 | K86: 80.83 | L86: 40.42 | M86: 83.12 | N86: 2
A87: 84 | B87: 11122064211 | C87: 代青青 | D87: 滑石乡人民政府 | E87: 滑石乡综治中心（网格化管理服务中心） | F87: XZ20 | G87: 综合类 | H87: 合格 | I87: 85.40 | J87: 42.70 | K87: 78.70 | L87: 39.35 | M87: 82.05 | N87: 3
A88: 85 | B88: 11122060201 | C88: 彭冰青 | D88: 碧江区卫健局 | E88: 碧江区疾病预防控制中心 | F88: QZ06 | G88: 医疗卫生类 | H88: 合格 | I88: 72.60 | J88: 36.30 | K88: 81.10 | L88: 40.55 | M88: 76.85 | N88: 1 | O88: 是
A89: 86 | B89: 11122060119 | C89: 周书贤 | D89: 碧江区卫健局 | E89: 碧江区疾病预防控制中心 | F89: QZ06 | G89: 医疗卫生类 | H89: 合格 | I89: 65.00 | J89: 32.50 | K89: 88.26 | L89: 44.13 | M89: 76.63 | N89: 2
A90: 87 | B90: 11122060127 | C90: 付灵霞 | D90: 碧江区卫健局 | E90: 碧江区疾病预防控制中心 | F90: QZ06 | G90: 医疗卫生类 | H90: 合格 | I90: 66.80 | J90: 33.40 | K90: 82.36 | L90: 41.18 | M90: 74.58 | N90: 3
A91: 88 | B91: 11122060106 | C91: 彭菲 | D91: 碧江区卫健局 | E91: 碧江区疾病预防控制中心 | F91: QZ06 | G91: 医疗卫生类 | H91: 合格 | I91: 67.80 | J91: 33.90 | K91: 77.62 | L91: 38.81 | M91: 72.71 | N91: 4
A92: 89 | B92: 11122060117 | C92: 田敏 | D92: 碧江区卫健局 | E92: 碧江区疾病预防控制中心 | F92: QZ06 | G92: 医疗卫生类 | H92: 合格 | I92: 69.00 | J92: 34.50 | K92: 0.00 | L92: 0.00 | M92: 34.50 | N92: 5 | P92: 面试缺考
A93: 90 | B93: 11122060203 | C93: 钟洋 | D93: 碧江区卫健局 | E93: 碧江区疾病预防控制中心 | F93: QZ07 | G93: 医疗卫生类 | H93: 合格 | I93: 72.40 | J93: 36.20 | K93: 81.34 | L93: 40.67 | M93: 76.87 | N93: 1 | O93: 是
A94: 91 | B94: 11122060205 | C94: 任盈 | D94: 碧江区卫健局 | E94: 碧江区疾病预防控制中心 | F94: QZ07 | G94: 医疗卫生类 | H94: 合格 | I94: 69.80 | J94: 34.90 | K94: 76.70 | L94: 38.35 | M94: 73.25 | N94: 2
A95: 92 | B95: 11122060423 | C95: 陈妍琳 | D95: 碧江区卫健局 | E95: 碧江区疾病预防控制中心 | F95: QZ07 | G95: 医疗卫生类 | H95: 合格 | I95: 70.00 | J95: 35.00 | K95: 68.66 | L95: 34.33 | M95: 69.33 | N95: 3
A96: 93 | B96: 11122060407 | C96: 陈雪娇 | D96: 碧江区卫健局 | E96: 碧江区疾病预防控制中心 | F96: QZ07 | G96: 医疗卫生类 | H96: 合格 | I96: 74.40 | J96: 37.20 | K96: 0.00 | L96: 0.00 | M96: 37.20 | N96: 4 | P96: 面试缺考
A97: 94 | B97: 11122060318 | C97: 龙碧 | D97: 碧江区卫健局 | E97: 碧江区疾病预防控制中心 | F97: QZ07 | G97: 医疗卫生类 | H97: 合格 | I97: 70.80 | J97: 35.40 | K97: 0.00 | L97: 0.00 | M97: 35.40 | N97: 5 | P97: 面试缺考
A98: 95 | B98: 11122060907 | C98: 龚红 | D98: 碧江区卫健局 | E98: 和平土家族侗族乡卫生院 | F98: WS02 | G98: 医疗卫生类 | H98: 合格 | I98: 72.20 | J98: 36.10 | K98: 79.96 | L98: 39.98 | M98: 76.08 | N98: 1 | O98: 是
A99: 96 | B99: 11122060628 | C99: 周婷婷 | D99: 碧江区卫健局 | E99: 和平土家族侗族乡卫生院 | F99: WS02 | G99: 医疗卫生类 | H99: 合格 | I99: 67.20 | J99: 33.60 | K99: 76.38 | L99: 38.19 | M99: 71.79 | N99: 2
A100: 97 | B100: 11122060812 | C100: 周文霞 | D100: 碧江区卫健局 | E100: 和平土家族侗族乡卫生院 | F100: WS02 | G100: 医疗卫生类 | H100: 合格 | I100: 68.00 | J100: 34.00 | K100: 72.02 | L100: 36.01 | M100: 70.01 | N100: 3
A101: 98 | B101: 11122060617 | C101: 张凤 | D101: 碧江区卫健局 | E101: 和平土家族侗族乡卫生院 | F101: WS02 | G101: 医疗卫生类 | H101: 递补合格 | I101: 66.20 | J101: 33.10 | K101: 72.66 | L101: 36.33 | M101: 69.43 | N101: 4
A102: 99 | B102: 11122060616 | C102: 卢芳艳 | D102: 碧江区卫健局 | E102: 和平土家族侗族乡卫生院 | F102: WS02 | G102: 医疗卫生类 | H102: 递补合格 | I102: 66.20 | J102: 33.10 | K102: 63.06 | L102: 31.53 | M102: 64.63 | N102: 5
A103: 100 | B103: 11122061728 | C103: 杨波 | D103: 碧江区卫健局 | E103: 漾头镇中心卫生院 | F103: WS03 | G103: 医疗卫生类 | H103: 合格 | I103: 70.60 | J103: =I103*0.5 -> 35.30 | K103: 79.96 | L103: =K103*0.5 -> 39.98 | M103: =J103+L103 -> 75.28 | N103: 1 | O103: 是
A104: 101 | B104: 11122061816 | C104: 钱伟 | D104: 碧江区卫健局 | E104: 漾头镇中心卫生院 | F104: WS03 | G104: 医疗卫生类 | H104: 合格 | I104: 67.80 | J104: 33.90 | K104: 77.46 | L104: 38.73 | M104: 72.63 | N104: 2
A105: 102 | B105: 11122061929 | C105: 罗艺 | D105: 碧江区卫健局 | E105: 漾头镇中心卫生院 | F105: WS03 | G105: 医疗卫生类 | H105: 递补合格 | I105: 66.00 | J105: 33.00 | K105: 75.10 | L105: 37.55 | M105: 70.55 | N105: 3
A106: 103 | B106: 11122061804 | C106: 郑亭亭 | D106: 碧江区卫健局 | E106: 漾头镇中心卫生院 | F106: WS03 | G106: 医疗卫生类 | H106: 合格 | I106: 67.60 | J106: 33.80 | K106: 71.06 | L106: 35.53 | M106: 69.33 | N106: 4
A107: 104 | B107: 11122061508 | C107: 陈婷 | D107: 碧江区卫健局 | E107: 漾头镇中心卫生院 | F107: WS03 | G107: 医疗卫生类 | H107: 递补合格 | I107: 66.00 | J107: 33.00 | K107: 70.38 | L107: 35.19 | M107: 68.19 | N107: 5
A108: 105 | B108: 11122061812 | C108: 梁军 | D108: 碧江区卫健局 | E108: 漾头镇中心卫生院 | F108: WS03 | G108: 医疗卫生类 | H108: 合格 | I108: 68.20 | J108: 34.10 | K108: 65.32 | L108: 32.66 | M108: 66.76 | N108: 6
A109: 106 | B109: 11122062007 | C109: 施绍雪 | D109: 碧江区卫健局 | E109: 桐木坪侗族乡卫生院 | F109: WS04 | G109: 医疗卫生类 | H109: 合格 | I109: 60.80 | J109: 30.40 | K109: 80.10 | L109: 40.05 | M109: 70.45 | N109: 1 | O109: 是
A110: 107 | B110: 11122062006 | C110: 杨青青 | D110: 碧江区卫健局 | E110: 桐木坪侗族乡卫生院 | F110: WS04 | G110: 医疗卫生类 | H110: 合格 | I110: 62.60 | J110: 31.30 | K110: 75.02 | L110: 37.51 | M110: 68.81 | N110: 2
A111: 108 | B111: 11122062017 | C111: 杨晓慧 | D111: 碧江区卫健局 | E111: 桐木坪侗族乡卫生院 | F111: WS04 | G111: 医疗卫生类 | H111: 合格 | I111: 63.00 | J111: 31.50 | K111: 72.12 | L111: 36.06 | M111: 67.56 | N111: 3
A112: 109 | B112: 11122062025 | C112: 许晓丽 | D112: 碧江区卫健局 | E112: 桐木坪侗族乡卫生院 | F112: WS04 | G112: 医疗卫生类 | H112: 递补合格 | I112: 59.40 | J112: 29.70 | K112: 74.80 | L112: 37.40 | M112: 67.10 | N112: 4
A113: 110 | B113: 11122062104 | C113: 周令 | D113: 碧江区卫健局 | E113: 桐木坪侗族乡卫生院 | F113: WS04 | G113: 医疗卫生类 | H113: 合格 | I113: 59.60 | J113: 29.80 | K113: 69.46 | L113: 34.73 | M113: 64.53 | N113: 5
A114: 111 | B114: 11122062502 | C114: 王之霞 | D114: 碧江区卫健局 | E114: 瓦屋侗族乡卫生院 | F114: WS05 | G114: 医疗卫生类 | H114: 合格 | I114: 65.60 | J114: 32.80 | K114: 80.42 | L114: 40.21 | M114: 73.01 | N114: 1 | O114: 是
A115: 112 | B115: 11122062514 | C115: 雷双恺 | D115: 碧江区卫健局 | E115: 瓦屋侗族乡卫生院 | F115: WS05 | G115: 医疗卫生类 | H115: 合格 | I115: 63.60 | J115: 31.80 | K115: 79.50 | L115: 39.75 | M115: 71.55 | N115: 2
A116: 113 | B116: 11122062203 | C116: 冯胜芬 | D116: 碧江区卫健局 | E116: 瓦屋侗族乡卫生院 | F116: WS05 | G116: 医疗卫生类 | H116: 合格 | I116: 64.00 | J116: 32.00 | K116: 71.86 | L116: 35.93 | M116: 67.93 | N116: 3
A117: 114 | B117: 11122062307 | C117: 曹路情 | D117: 碧江区卫健局 | E117: 瓦屋侗族乡卫生院 | F117: WS05 | G117: 医疗卫生类 | H117: 合格 | I117: 63.40 | J117: 31.70 | K117: 70.90 | L117: 35.45 | M117: 67.15 | N117: 4
A118: 115 | B118: 11122062727 | C118: 杨剑伟 | D118: 碧江区卫健局 | E118: 瓦屋侗族乡卫生院 | F118: WS05 | G118: 医疗卫生类 | H118: 合格 | I118: 63.20 | J118: 31.60 | K118: 0.00 | L118: 0.00 | M118: 31.60 | N118: 5 | P118: 面试缺考
A119: 116 | B119: 11122062819 | C119: 张江玲 | D119: 碧江区卫健局 | E119: 碧江区人民医院 | F119: WS06 | G119: 医疗卫生类 | H119: 合格 | I119: 72.00 | J119: 36.00 | K119: 79.08 | L119: 39.54 | M119: 75.54 | N119: 1 | O119: 是
A120: 117 | B120: 11122062825 | C120: 吴森标 | D120: 碧江区卫健局 | E120: 碧江区人民医院 | F120: WS06 | G120: 医疗卫生类 | H120: 合格 | I120: 67.20 | J120: 33.60 | K120: 79.20 | L120: 39.60 | M120: 73.20 | N120: 2
A121: 118 | B121: 11122062809 | C121: 赵晓杰 | D121: 碧江区卫健局 | E121: 碧江区人民医院 | F121: WS06 | G121: 医疗卫生类 | H121: 合格 | I121: 72.20 | J121: 36.10 | K121: 72.66 | L121: 36.33 | M121: 72.43 | N121: 3
A122: 119 | B122: 11122062901 | C122: 龙沙 | D122: 碧江区卫健局 | E122: 碧江区人民医院 | F122: WS06 | G122: 医疗卫生类 | H122: 合格 | I122: 69.00 | J122: 34.50 | K122: 67.30 | L122: 33.65 | M122: 68.15 | N122: 4
A123: 120 | B123: 11122062816 | C123: 杨旭 | D123: 碧江区卫健局 | E123: 碧江区人民医院 | F123: WS06 | G123: 医疗卫生类 | H123: 递补合格 | I123: 66.00 | J123: 33.00 | K123: 64.30 | L123: 32.15 | M123: 65.15 | N123: 5
A124: 121 | B124: 11122062911 | C124: 舒萍 | D124: 碧江区卫健局 | E124: 碧江区人民医院 | F124: WS07 | G124: 医疗卫生类 | H124: 合格 | I124: 58.20 | J124: 29.10 | K124: 74.66 | L124: 37.33 | M124: 66.43 | N124: 1 | O124: 是
A125: 122 | B125: 11122062910 | C125: 黄恬艺 | D125: 碧江区卫健局 | E125: 碧江区人民医院 | F125: WS07 | G125: 医疗卫生类 | H125: 合格 | I125: 53.20 | J125: 26.60 | K125: 78.90 | L125: 39.45 | M125: 66.05 | N125: 2
A126: 123 | B126: 11122063008 | C126: 张倬鸣 | D126: 碧江区卫健局 | E126: 碧江区人民医院 | F126: WS09 | G126: 医疗卫生类 | H126: 合格 | I126: 74.20 | J126: 37.10 | K126: 89.96 | L126: 44.98 | M126: 82.08 | N126: 1 | O126: 是
A127: 124 | B127: 11122063022 | C127: 蓝钰淞 | D127: 碧江区卫健局 | E127: 碧江区人民医院 | F127: WS09 | G127: 医疗卫生类 | H127: 合格 | I127: 74.60 | J127: 37.30 | K127: 78.30 | L127: 39.15 | M127: 76.45 | N127: 2
A128: 125 | B128: 11122063130 | C128: 杨嘉莉 | D128: 碧江区卫健局 | E128: 碧江区人民医院 | F128: WS09 | G128: 医疗卫生类 | H128: 合格 | I128: 70.20 | J128: 35.10 | K128: 76.72 | L128: 38.36 | M128: 73.46 | N128: 3
A129: 126 | B129: 11122063121 | C129: 罗凤 | D129: 碧江区卫健局 | E129: 碧江区人民医院 | F129: WS09 | G129: 医疗卫生类 | H129: 合格 | I129: 73.00 | J129: 36.50 | K129: 71.98 | L129: 35.99 | M129: 72.49 | N129: 4
A130: 127 | B130: 11122063215 | C130: 任海璐 | D130: 碧江区卫健局 | E130: 碧江区人民医院 | F130: WS09 | G130: 医疗卫生类 | H130: 合格 | I130: 70.80 | J130: 35.40 | K130: 64.86 | L130: 32.43 | M130: 67.83 | N130: 5
A131: 128 | B131: 11122063218 | C131: 温美艳 | D131: 碧江区卫健局 | E131: 碧江区人民医院 | F131: WS10 | G131: 医疗卫生类 | H131: 合格 | I131: 71.00 | J131: 35.50 | K131: 78.50 | L131: 39.25 | M131: 74.75 | N131: 1 | O131: 是
A132: 129 | B132: 11122063227 | C132: 袁小东 | D132: 碧江区卫健局 | E132: 碧江区人民医院 | F132: WS10 | G132: 医疗卫生类 | H132: 合格 | I132: 65.60 | J132: 32.80 | K132: 75.42 | L132: 37.71 | M132: 70.51 | N132: 2
A133: 130 | B133: 11122063228 | C133: 李雨蝶 | D133: 碧江区卫健局 | E133: 碧江区人民医院 | F133: WS10 | G133: 医疗卫生类 | H133: 合格 | I133: 63.20 | J133: 31.60 | K133: 72.34 | L133: 36.17 | M133: 67.77 | N133: 3
A134: 131 | B134: 11122063221 | C134: 廖小梅 | D134: 碧江区卫健局 | E134: 碧江区人民医院 | F134: WS10 | G134: 医疗卫生类 | H134: 合格 | I134: 65.40 | J134: 32.70 | K134: 69.32 | L134: 34.66 | M134: 67.36 | N134: 4
A135: 132 | B135: 11122063225 | C135: 杨广 | D135: 碧江区卫健局 | E135: 碧江区人民医院 | F135: WS10 | G135: 医疗卫生类 | H135: 合格 | I135: 57.40 | J135: 28.70 | K135: 76.14 | L135: 38.07 | M135: 66.77 | N135: 5
A136: 133 | B136: 11122063905 | C136: 杜娟 | D136: 碧江区卫健局 | E136: 环北社区卫生服务中心 | F136: WS01 | G136: 医疗卫生类 | H136: 合格 | I136: 83.80 | J136: 41.90 | K136: 86.00 | L136: 43.00 | M136: 84.90 | N136: 1 | O136: 是
A137: 134 | B137: 11122063406 | C137: 陶家敏 | D137: 碧江区卫健局 | E137: 环北社区卫生服务中心 | F137: WS01 | G137: 医疗卫生类 | H137: 合格 | I137: 81.80 | J137: 40.90 | K137: 82.98 | L137: 41.49 | M137: 82.39 | N137: 2
A138: 135 | B138: 11122063904 | C138: 龙蓉 | D138: 碧江区卫健局 | E138: 环北社区卫生服务中心 | F138: WS01 | G138: 医疗卫生类 | H138: 合格 | I138: 81.80 | J138: 40.90 | K138: 81.44 | L138: 40.72 | M138: 81.62 | N138: 3
A139: 136 | B139: 11122063725 | C139: 赵蝶 | D139: 碧江区卫健局 | E139: 环北社区卫生服务中心 | F139: WS01 | G139: 医疗卫生类 | H139: 合格 | I139: 82.80 | J139: 41.40 | K139: 80.28 | L139: 40.14 | M139: 81.54 | N139: 4
A140: 137 | B140: 11122063722 | C140: 刘晴 | D140: 碧江区卫健局 | E140: 环北社区卫生服务中心 | F140: WS01 | G140: 医疗卫生类 | H140: 合格 | I140: 82.60 | J140: 41.30 | K140: 80.26 | L140: 40.13 | M140: 81.43 | N140: 5
A141: 138 | B141: 11122063514 | C141: 杨宇 | D141: 碧江区卫健局 | E141: 环北社区卫生服务中心 | F141: WS01 | G141: 医疗卫生类 | H141: 合格 | I141: 82.20 | J141: 41.10 | K141: 78.50 | L141: 39.25 | M141: 80.35 | N141: 6
A142: 139 | B142: 11122065213 | C142: 卢虹宇 | D142: 滑石乡人民政府 | E142: 滑石乡农业服务中心（乡村振兴服务中心） | F142: XZ21 | G142: 综合类 | H142: 合格 | I142: 86.10 | J142: 43.05 | K142: 80.83 | L142: 40.42 | M142: 83.47 | N142: 1 | O142: 是
A143: 140 | B143: 11122065317 | C143: 袁凯 | D143: 滑石乡人民政府 | E143: 滑石乡农业服务中心（乡村振兴服务中心） | F143: XZ21 | G143: 综合类 | H143: 合格 | I143: 84.60 | J143: 42.30 | K143: 79.57 | L143: 39.79 | M143: 82.09 | N143: 2
A144: 141 | B144: 11122065215 | C144: 王雄 | D144: 滑石乡人民政府 | E144: 滑石乡农业服务中心（乡村振兴服务中心） | F144: XZ21 | G144: 综合类 | H144: 合格 | I144: 83.20 | J144: 41.60 | K144: 79.60 | L144: 39.80 | M144: 81.40 | N144: 3
